[Event "93rd German Championship 2022"]
[Site "Magdeburg"]
[Date "2022.08.18"]
[Round "7.9"]
[White "Dahl, Christoph"]
[Black "Langheinrich, Ferenc"]
[Result "1/2-1/2"]
[ECO "B32"]
[WhiteElo "2355"]
[BlackElo "2357"]
[Annotator "TA"]
[PlyCount "82"]
[EventDate "2022.08.14"]
[EventType "swiss"]
[EventCountry "GER"]
[SourceTitle "playchess.com"]
[Source "ChessBase"]
[SourceQuality "1"]
[TimeControl "40/5400+30:1800+30"]

{[%evp 15,82,21,41,24,33,30,41,33,29,29,23,0,18,13,19,19,9,-2,41,48,52,15,16,8,8,9,11,11,20,0,0,0,0,0,0,-22,-22,-23,-20,-25,-8,-12,0,-33,-27,-18,-30,-38,0,0,0,0,8,8,8,8,8,8,8,8,20,20,20,20,20,20,20,20,20]} 1. e4 {[%emt 0:00:09]} c5 {[%emt 0:00:13]} 2. Nf3 {[%emt 0:00:24][%cal Bg1f3,Bf3d4,Bd4b5,Bb5a3,Ba3c4,Bc4e3][%mdl 32]} Nc6 {[%emt 0:00:06]} 3. d4 {[%emt 0:00:48]} cxd4 {[%emt 0:00:13]} 4. Nxd4 {[%emt 0:00:40]} e5 {[%emt 0:00:37]} 5. Nb5 {[%emt 0:00:48]} d6 {[%emt 0:00:09]} 6. N1c3 {[%emt 0:01:08]} a6 {[%emt 0:04:07]} 7. Na3 {[%emt 0:01:28]} Be6 {[%emt 0:04:20]} 8. Nc4 {[%emt 0:02:19]} Rc8 {[%emt 0:03:00] 8...Rb8 is the modern continuation.} 9. Nd5 {[%emt 0:06:18] B32: Sicilian: Löwenthal and Kalashnikov Variations.} Qh4 {[%emt 0:23:14] [#]} 10. Bd3 $146 {[%emt 0:17:12]} ({Predecessor:} 10. Nce3 Qxe4 11. Bd3 Qd4 12. c3 Qc5 13. b4 Qa7 14. O-O Nge7 15. Be4 Nxd5 16. Nxd5 f5 {1-0 (42) Schabata,W (2148)-Zapfel,P (1946) ICCF email 2008}) 10... Bxd5 {[%emt 0:10:55]} 11. exd5 {[%emt 0:00:22] White is slightly better.} Nb4 {[%emt 0:00:20][%csl LRc4,LRd5]} 12. Ne3 {[%emt 0:04:36] [#] And now Be2 would win.} Nxd3+ {[%emt 0:01:15]} 13. Qxd3 {[%emt 0:03:45]} Nf6 {[%emt 0:04:43]} 14. O-O {[%emt 0:02:04][%cal Of2f4]} Ng4 {[%emt 0:17:46]} 15. Nxg4 {[%emt 0:05:34]} Qxg4 {[%emt 0:00:16]} 16. f4 {[%emt 0:02:16]} f6 {[%emt 0:09:25]} 17. Be3 {[%emt 0:04:05]} Be7 {[%emt 0:00:58]} 18. fxe5 {[%emt 0:04:18]} fxe5 {[%emt 0:01:30]} 19. h3 {[%emt 0:03:07]} Qg6 {[%emt 0:03:23]} 20. Rf5 {[%emt 0:06:36]} Bf6 {[%emt 0:04:13]} (20... Kd7 {with more complications.} 21. Raf1 Rhf8 22. a4 Rxf5 23. Rxf5 Rf8) 21. Raf1 {[%emt 0:00:44]} O-O {[%emt 0:00:06]} 22. Qb3 {[%emt 0:03:39]} b5 {[%emt 0:00:40]} 23. a4 {[%emt 0:01:54]} e4 {[%emt 0:01:36]} 24. axb5 {[%emt 0:00:29]} axb5 {[%emt 0:00:07]} 25. c3 {[%emt 0:09:12]} Qg3 {[%emt 0:00:20]} 26. Bf2 {[%emt 0:00:21]} Qd3 {[%emt 0:02:37] [#] Hoping for ...e3.} 27. Rd1 {[%emt 0:02:29]} Qe2 {[%emt 0:00:55][%cal Of6c3]} 28. Re1 {[%emt 0:00:49]} Qd3 {[%emt 0:00:14][%cal Oe4e3] Threatens to win with ...e3!} (28... Qd2 {seems wilder.} 29. Qxb5 g6 30. Rxf6 Rxf6 31. Bg3 Qd3) 29. Rd1 $1 {[%emt 0:08:13]} Qc4 {[%emt 0:00:08]} 30. Qxc4 {[%emt 0:00:07]} Rxc4 {[%emt 0:00:02]} 31. Rf1 {[%emt 0:01:25][%cal Of2h4]} b4 {[%emt 0:00:57]} (31... Re8 {feels hotter.} 32. Bg3 b4 33. Bxd6 bxc3 34. bxc3 Rxc3 35. Re1 Bd4+) 32. Bh4 $1 {[%emt 0:01:58][%cal Rh4f6] The position is equal.} bxc3 {[%emt 0:01:20]} 33. bxc3 {[%emt 0:00:07][%cal Rh4f6]} Rxc3 {[%emt 0:02:31] White must now prevent ...Bd4+.} 34. Bxf6 {[%emt 0:00:05]} Rxf6 {[%emt 0:00:15]} 35. Rxf6 {[%emt 0:00:06]} gxf6 {[%emt 0:00:03]} 36. Rxf6 $11 {[%emt 0:00:05][%mdl 4096] Endgame KR-KR} e3 {[%emt 0:00:19]} 37. Kf1 {[%emt 0:00:17]} Rc2 {[%emt 0:00:07]} 38. Rxd6 {[%emt 0:00:35]} Rf2+ {[%emt 0:00:04]} 39. Kg1 {[%emt 0:01:24]} Rd2 {[%emt 0:00:07] aiming for ...Rd1+.} 40. Re6 {[%emt 0:00:08]} Rxd5 {[%emt 0:00:13]} 41. Rxe3 {[%emt 0:30:07]} Kg7 {[%emt 0:30:10] Weighted Error Value: White=0.04 (flawless) /Black=0.07 (flawless)} 1/2-1/2

[Event "93rd German Championship 2022"]
[Site "Magdeburg"]
[Date "2022.08.18"]
[Round "7.10"]
[White "Parvanyan, Alfred"]
[Black "Bethke, Richard"]
[Result "0-1"]
[ECO "A06"]
[WhiteElo "2126"]
[BlackElo "2381"]
[Annotator "TA"]
[PlyCount "124"]
[EventDate "2022.08.14"]
[EventType "swiss"]
[EventCountry "GER"]
[SourceTitle "playchess.com"]
[Source "ChessBase"]
[SourceQuality "1"]
[TimeControl "40/5400+30:1800+30"]

{[%evp 9,124,8,23,-5,6,0,0,0,0,0,14,7,0,0,36,10,0,0,15,5,9,8,14,14,102,102,102,102,104,105,113,29,22,26,18,-3,-1,-3,-4,-8,-7,-18,0,-11,-8,-29,-35,-117,-110,-137,-146,-113,-120,-118,-103,-263,-175,-167,-150,-147,-127,-140,-92,-115,-89,-89,-85,-205,-77,-280,-280,-278,-219,-386,-365,-29970,-29972,-29970,-29969,-29969,-29970,-29967,-29967,-29977,-29975,-29975,-29974,-29979,-29980,-29980,-29977,-29977,-29978,-29981,-29982,-29982,-29983,-29983,-29984,-29986,-29987,-29987,-29988,-29989,-29990,-29990,-29991,-29991,-29991,-29991,-29992,-29994,-29993,-29996,-29997,-29998,-29999]} 1. Nf3 {[%emt 0:01:19]} d5 {[%emt 0:00:36]} 2. g3 {[%emt 0:00:37]} Nd7 {[%emt 0:00:08]} 3. d4 {[%emt 0:01:09]} b5 {[%emt 0:01:41]} 4. Bg2 {[%emt 0:02:55]} Bb7 {[%emt 0:00:11]} 5. O-O {[%emt 0:00:21]} e6 {[%emt 0:00:03]} 6. c3 {[%emt 0:02:44][%cal Oe2e4] [#] D02: 1 d4 d5 2 Nf3 sidelines, including 2...Nf6 3 g3 and 2...Nf6 3 Bf4.} a5 $146 {[%emt 0:01:44]} ({Predecessor:} 6... c5 7. a4 b4 8. dxc5 Bxc5 9. cxb4 Bxb4 10. Qd4 Bf8 11. b4 Be7 12. Ra2 Bf6 {0-1 (51) Pigusov,E (2555)-Postny,E (2605) Moscow 2019}) 7. e4 {[%emt 0:02:11]} dxe4 {[%emt 0:04:48]} 8. Ng5 {[%emt 0:01:21] The position is equal.} Ngf6 {[%emt 0:03:06] Against Qh5} 9. Qe2 {[%emt 0:02:45]} c5 {[%emt 0:05:14]} 10. Nxe4 {[%emt 0:09:30]} ({But not} 10. Qxb5 Ba6 11. Qa4 Bxf1 12. Kxf1 cxd4 13. Nxe4 Rc8 14. Qxd4 Be7 $17) 10... Nxe4 {[%emt 0:00:26]} 11. Bxe4 {[%emt 0:00:13]} Qb6 {[%emt 0:06:36]} 12. Na3 {[%emt 0:05:14]} Bxe4 {[%emt 0:01:02]} 13. Qxe4 {[%emt 0:00:14]} Rc8 {[%emt 0:02:48]} 14. Qe2 {[%emt 0:16:01]} c4 {[%emt 0:12:26]} 15. Nc2 {[%emt 0:07:36]} Qc6 {[%emt 0:00:26]} 16. f4 {[%emt 0:02:37]} g6 {[%emt 0:08:25] [#]} (16... f5 $11) 17. f5 $1 $16 {[%emt 0:02:38]} Bg7 {[%emt 0:05:10]} 18. fxe6 {[%emt 0:02:57]} Qxe6 {[%emt 0:00:07]} 19. Qxe6+ {[%emt 0:06:37]} fxe6 {[%emt 0:00:11]} 20. Bf4 {[%emt 0:00:29]} (20. Bd2 $16) 20... O-O $11 {[%emt 0:03:35]} 21. Rfe1 {[%emt 0:05:38]} Rfe8 {[%emt 0:02:09]} 22. Na3 {[%emt 0:00:54]} e5 $1 {[%emt 0:04:52]} 23. dxe5 {[%emt 0:01:48]} b4 {[%emt 0:01:25]} 24. e6 {[%emt 0:13:08]} Nf8 {[%emt 0:01:31][%cal Bd7f8,Bf8e6,Be6g5,Bg5e4][%mdl 32]} 25. Nb5 {[%emt 0:01:36] aiming for e7.} Rxe6 {[%emt 0:00:12]} 26. Rxe6 {[%emt 0:01:20]} Nxe6 {[%emt 0:00:11]} 27. Bd6 {[%emt 0:00:36]} Ng5 {[%emt 0:01:53]} 28. Bc7 {[%emt 0:02:31]} ({White should play} 28. Rc1 $15) 28... Ne4 $17 {[%emt 0:04:26][%cal Rb4c3]} 29. Rc1 {[%emt 0:02:35]} bxc3 {[%emt 0:01:19]} 30. bxc3 {[%emt 0:00:16] [#]} Nxc3 $1 {[%emt 0:00:21][%mdl 512]} 31. Nxc3 {[%emt 0:00:28] Strongly threatening Nb5.} Rxc7 {[%emt 0:00:16][%mdl 4096] Endgame KRB-KRN} 32. a4 $2 {[%emt 0:03:01]} (32. Kf2 $17) 32... h5 {[%emt 0:04:16]} 33. Kf2 {[%emt 0:00:25]} Kh7 {[%emt 0:04:36]} 34. Kf3 {[%emt 0:01:18]} g5 {[%emt 0:04:35]} 35. Ke4 {[%emt 0:00:44]} Rc5 {[%emt 0:00:18]} ({Black should try} 35... Kg6 36. Kd5 Rc8) 36. h3 {[%emt 0:01:25]} Kg6 {[%emt 0:00:51]} 37. g4 {[%emt 0:00:35]} h4 {[%emt 0:00:30]} 38. Rc2 {[%emt 0:00:32]} (38. Ke3 $17) 38... Kf7 {[%emt 0:04:47]} (38... Rc8 $19 {Hoping for ...Rd8.} 39. Rc1 Re8+ 40. Kf3 Bd4) 39. Nd5 $2 {[%emt 0:01:01]} (39. Ke3 $17 {was the only chance.}) 39... c3 $19 {[%emt 0:02:15]} 40. Ne3 {[%emt 0:00:12] Inhibits Rc4+.} Ke6 {[%emt 0:00:48] White must now prevent ...Rc8.} 41. Nf5 $2 {[%emt 0:09:41]} (41. Kd3) 41... Bf6 {[%emt 0:00:12]} 42. Nd4+ $2 {[%emt 0:00:37]} (42. Ne3 $19 Rc6 43. Kd3) 42... Bxd4 {[%emt 0:00:57] Black mates.} 43. Kxd4 {[%emt 0:00:05] KR-KR} Kd6 {[%emt 0:00:08]} 44. Ke4 {[%emt 0:07:18]} Rc4+ {[%emt 0:00:08]} 45. Kd3 {[%emt 0:03:20]} Kd5 {[%emt 0:00:10]} 46. Ke3 {[%emt 0:03:30]} Rc6 {[%emt 0:00:12]} 47. Kd3 {[%emt 0:00:13]} Rc5 {[%emt 0:00:06]} 48. Rxc3 {[%emt 0:03:15]} Rxc3+ {[%emt 0:00:06]} 49. Kxc3 {[%emt 0:00:04] K3P-K3P} Kc5 {[%emt 0:00:11]} 50. Kd3 {[%emt 0:01:56]} Kb4 {[%emt 0:01:24]} 51. Ke4 {[%emt 0:00:31]} Kxa4 {[%emt 0:00:04] K3P-KPP} 52. Kf5 {[%emt 0:00:04]} Kb5 {[%emt 0:00:05]} 53. Kxg5 {[%emt 0:00:08]} a4 {[%emt 0:00:03]} 54. Kxh4 {[%emt 0:01:03] KPP-KP} a3 {[%emt 0:00:03]} 55. g5 {[%emt 0:00:08]} a2 {[%emt 0:00:04]} 56. Kh5 {[%emt 0:00:47]} a1=Q {[%emt 0:00:16]} 57. h4 {[%emt 0:00:33]} Qh8+ {[%emt 0:00:05]} 58. Kg4 {[%emt 0:00:05]} Kc5 {[%emt 0:00:17]} 59. h5 {[%emt 0:00:04]} Kd5 {[%emt 0:00:14]} 60. h6 {[%emt 0:00:26]} Ke5 {[%emt 0:00:08]} 61. Kh5 {[%emt 0:00:07]} Kf5 {[%emt 0:00:07]} 62. g6 {[%emt 0:00:06]} Qf6 {[%emt 0:00:05] Weighted Error Value: White=0.32/Black=0.12 (very precise)} 0-1

[Event "93rd German Championship 2022"]
[Site "Magdeburg"]
[Date "2022.08.18"]
[Round "7.11"]
[White "Colpe, Malte"]
[Black "Schulz, Lukas"]
[Result "0-1"]
[ECO "E69"]
[WhiteElo "2369"]
[BlackElo "2272"]
[Annotator "TA"]
[PlyCount "64"]
[EventDate "2022.08.14"]
[EventType "swiss"]
[EventCountry "GER"]
[SourceTitle "playchess.com"]
[Source "ChessBase"]
[SourceQuality "1"]
[TimeControl "40/5400+30:1800+30"]

{[%evp 20,64,81,77,115,49,53,6,33,20,106,119,114,117,119,134,119,128,140,102,132,120,175,120,295,297,308,299,568,8,16,-37,-65,-1214,-598,-29995,283,-542,-539,-29997,0,-502,0,-29997,-29998,-29998,-29999]} 1. d4 {[%emt 0:00:03]} Nf6 {[%emt 0:00:05]} 2. c4 {[%emt 0:00:06]} g6 {[%emt 0:00:05]} 3. Nc3 {[%emt 0:00:28]} Bg7 {[%emt 0:00:09]} 4. Nf3 {[%emt 0:01:14]} O-O {[%emt 0:00:47]} 5. g3 {[%emt 0:01:15]} d6 {[%emt 0:00:49]} 6. Bg2 {[%emt 0:00:09]} Nbd7 {[%emt 0:01:25]} 7. O-O {[%emt 0:00:11]} e5 {[%emt 0:00:56]} 8. e4 {[%emt 0:00:16]} c6 {[%emt 0:09:05]} 9. h3 Qe7 {[%emt 0:10:14]} 10. Re1 {[%emt 0:03:51]} Ne8 {[%emt 0:04:26] 10...h6 is the hot move.} 11. b3 {[%emt 0:09:13]} f5 {[%emt 0:09:43] [#] E69: King's Indian: Fianchetto: 6...Nbd7 7 0-0 e5 8 e4 c6 9 h3.} 12. dxe5 $146 {[%emt 0:18:46]} (12. Bg5 $16 Qf7 13. exf5) ({Predecessor:} 12. exf5 gxf5 13. Bf4 e4 14. Qd2 Qf7 15. Nh2 Ndf6 16. Bh6 d5 17. cxd5 cxd5 18. Rac1 Bd7 19. Nf1 {1-0 (59) Bukal,V (2441)-Muse,D (2413) Pula 2001}) 12... dxe5 $14 {[%emt 0:12:24]} 13. a4 {[%emt 0:02:48]} (13. Bg5 $14 Qe6 14. Bd8) 13... Qf6 {[%emt 0:03:11] The position is equal.} (13... Nc5 {is more complex.} 14. exf5 Bxf5 15. Ba3 Nc7) 14. Ra2 {[%emt 0:09:48] next exf5 is good for White.} f4 {[%emt 0:10:38]} (14... Nc7 $11 {keeps the balance.}) 15. gxf4 $16 {[%emt 0:05:18]} Nc7 {[%emt 0:07:58]} 16. Rd2 $36 {[%emt 0:06:44][%mdl 2048] White is in control.} Qe7 {[%emt 0:02:30]} 17. f5 {[%emt 0:04:12]} Nf6 {[%emt 0:01:51]} 18. Bb2 {[%emt 0:07:18]} Nh5 {[%emt 0:02:31]} 19. Ne2 {[%emt 0:05:26]} gxf5 {[%emt 0:06:31]} 20. exf5 {[%emt 0:00:08][%cal Of3e5]} Bxf5 {[%emt 0:00:04] [#]} (20... e4 $16 {was called for.}) 21. Nxe5 {[%emt 0:07:25]} (21. Ned4 $1 $18 {[%cal Rd4f5][%mdl 512]} Bg6 (21... Ne6 22. Nxf5) 22. Nxe5 $1) 21... Bxh3 {[%emt 0:08:38]} (21... Bxe5 $2 22. Ng3 (22. Nc1 Qg5 $14) 22... Nxg3 23. Bxe5 $18) (21... Rae8 $16) 22. Bxh3 $18 {[%emt 0:02:20]} ({Much less strong is} 22. Ng3 Nxg3 23. Bxh3 Qh4 $18) 22... Qh4 {[%emt 0:00:06] Prevents Ng3.} (22... Bxe5 $2 23. Ng3 Nf4 24. Qg4+ Qg7 25. Bxe5 $18) 23. Rd3 {[%emt 0:05:51][%cal Oe2g3] Black must now prevent Ng3!} Rae8 $2 {[%emt 0:02:46]} (23... Nf4 $2 24. Nxf4 Rad8 25. Qg4 $1 Qxg4+ 26. Bxg4 $18) (23... Rxf2 24. Rf1 Raf8) 24. f4 $2 {[%emt 0:02:43]} ({White must play} 24. Ng3 $18 Nf4 25. Bf5 Nxd3 26. Qxd3 (26. Nxd3 Bxb2 27. Nxb2 Qg5 $18)) 24... Ne6 $1 $11 {[%emt 0:02:33]} (24... Nxf4 $2 25. Nxf4 Rxf4 26. Qd2 $18) 25. Bxe6+ {[%emt 0:04:19]} (25. Bg2 $11 Nexf4 26. Nxf4 Nxf4 27. Rd2) 25... Rxe6 $15 {[%emt 0:00:02] Really sharp!} 26. Nd4 $2 {[%emt 0:01:36][%mdl 8192] [#]} (26. Qd2 $15) 26... Rxf4 $1 {[%emt 0:02:28]} 27. Ndf3 {[%emt 0:01:40] [#]} (27. Rd2 Rxe5) 27... Qg3+ {[%emt 0:01:01][%mdl 8192]} (27... Rg6+ $1 {mates} 28. Ng4 Rgxg4+ 29. Kf1 Ng3+ 30. Kg2 Ne4+ 31. Kf1 Qf2#) 28. Kf1 $4 {[%emt 0:00:29][%mdl 8192]} (28. Kh1 $18 {was the only winning move.} Rh4+ 29. Nxh4 Qxh4+ 30. Kg1) 28... Qh3+ $19 {[%emt 0:00:27]} 29. Kf2 {[%emt 0:00:30] Rd8+ is the strong threat.} Qg3+ {[%emt 0:00:48]} (29... Qh2+ $142 $1 30. Ke3 {[#]} Re4+ $3 {[%mdl 512]} 31. Kxe4 Qf4#) 30. Kf1 {[%emt 0:00:34] And now Re2 would win.} Qh3+ {[%emt 0:00:13]} (30... Qh2 $19 31. Ree3 Ng3+ 32. Ke1 Qxb2 33. Rd8+ Bf8) 31. Kf2 $1 {[%emt 0:00:11] Hoping for Rd8+.} Qh2+ $1 {[%emt 0:00:39][%mdl 64] Skewer} 32. Ke3 {[%emt 0:00:22] [#]} Re4+ $3 {[%emt 0:00:12][%mdl 576] Decoy, Clearance.  Weighted Error Value: White=1.12/Black=1.27} 0-1

[Event "93rd German Championship 2022"]
[Site "Magdeburg"]
[Date "2022.08.18"]
[Round "7.12"]
[White "Kunin, Vitaly"]
[Black "Malek, Daniel"]
[Result "1-0"]
[ECO "E21"]
[WhiteElo "2528"]
[BlackElo "2355"]
[Annotator "TA"]
[PlyCount "117"]
[EventDate "2022.08.14"]
[EventType "swiss"]
[EventCountry "GER"]
[SourceTitle "playchess.com"]
[Source "ChessBase"]
[SourceQuality "1"]
[TimeControl "40/5400+30:1800+30"]

{[%evp 12,117,18,19,10,9,9,0,0,0,6,0,10,0,0,-10,0,-18,0,-19,-14,0,0,-15,11,0,-12,-30,19,13,35,37,31,37,46,49,34,28,44,31,39,23,52,54,49,36,43,8,52,45,60,48,44,29,52,32,43,10,36,33,33,23,39,0,0,-10,27,8,8,11,80,81,80,81,81,81,87,78,79,94,98,104,100,99,102,0,35,0,113,111,162,162,162,98,101,96,438,431,361,357,889,850,29965,29966,6635,5583,4714,4710]} 1. d4 {[%emt 0:05:41]} Nf6 {[%emt 0:00:09]} 2. c4 {[%emt 0:00:42]} e6 {[%emt 0:00:04]} 3. Nc3 {[%emt 0:00:29]} Bb4 {[%emt 0:00:06]} 4. Nf3 {[%emt 0:00:26]} d5 {[%emt 0:00:18]} 5. Qa4+ {[%emt 0:01:08]} Nc6 {[%emt 0:00:09]} 6. e3 {[%emt 0:00:14]} O-O {[%emt 0:00:13]} 7. Bd2 {[%emt 0:00:25]} dxc4 {[%emt 0:03:46] D38: Queen's Gambit Declined: Ragozin Defence (4 Nf3 Bb4).} 8. Bxc4 {[%emt 0:00:58]} Bd6 {[%emt 0:00:05]} 9. h3 {[%emt 0:05:25]} e5 {[%emt 0:00:26] The position is equal.} 10. d5 {[%emt 0:00:56]} Ne7 {[%emt 0:00:39]} 11. e4 {[%emt 0:00:33] Against Bf5} a6 {[%emt 0:07:32]} 12. Qc2 {[%emt 0:00:21] [#]} Ng6 $146 {[%emt 0:02:40]} ({Predecessor:} 12... Bd7 13. O-O h6 14. Be3 Ng6 15. Ne2 Nh5 16. Ng3 Nhf4 17. Nf5 Qf6 18. Rfd1 Bxf5 19. exf5 {0-1 (48) Jianu,V (2527)-Gavrilescu,D (2512) Bucharest 2022}) 13. Bd3 {[%emt 0:11:45]} Bd7 {[%emt 0:03:59]} 14. Qb3 {[%emt 0:09:59]} Qe7 {[%emt 0:12:11]} 15. O-O {[%emt 0:01:19]} (15. Qxb7 $2 Rfb8 16. Qb3 Rxb3 $19) 15... h6 {[%emt 0:00:36]} 16. Rfe1 $1 {[%emt 0:02:50]} (16. Qxb7 $2 Rfb8 17. Qb3 Rxb3 $19) 16... Nh5 {[%emt 0:03:03]} 17. Ne2 {[%emt 0:05:29][%cal Bc3e2,Be2g3,Bg3f5][%mdl 32]} (17. Qxb7 $2 Rfb8 18. Bxa6 Rxb7 19. Bxb7 Rb8 $19) 17... Nh4 {[%emt 0:03:55] White must now prevent ...Nxf3+.} 18. Nxh4 {[%emt 0:01:28]} (18. Qxb7 $2 Nxf3+ 19. gxf3 Rfb8 20. Qxa8 Rxa8 $19) 18... Qxh4 {[%emt 0:00:08]} 19. Bc2 {[%emt 0:01:25]} (19. Qxb7 $2 Rfb8 20. Qxa8 Rxa8 $19) 19... Kh8 {[%emt 0:19:33]} (19... f5 {is more appropriate.}) 20. g4 {[%emt 0:18:42]} ({But not} 20. Qxb7 $2 Rfb8 21. Qxa8 Rxa8 $19) 20... Nf6 {[%emt 0:10:18]} (20... Nf4 {seems wilder.} 21. Nxf4 exf4 22. e5 Bc5) 21. Qg3 {[%emt 0:00:37]} Qxg3+ {[%emt 0:00:10]} 22. Nxg3 {[%emt 0:01:18]} c6 {[%emt 0:00:09]} 23. dxc6 {[%emt 0:01:32]} Bxc6 {[%emt 0:00:09]} 24. Rad1 {[%emt 0:04:43][%cal Od2h6]} Bc5 {[%emt 0:03:02]} 25. Bc3 {[%emt 0:01:09]} Rfe8 {[%emt 0:00:44]} 26. Kg2 {[%emt 0:01:20]} Nh7 {[%emt 0:07:24]} 27. Nf5 {[%emt 0:02:18]} f6 {[%emt 0:01:51]} 28. b4 {[%emt 0:01:06]} Bb6 {[%emt 0:00:57]} 29. a4 {[%emt 0:06:46][%cal Ob4b5]} (29. h4 {feels hotter.} Nf8 30. g5 Ng6 31. gxf6 gxf6 32. Rd6) 29... Bc7 {[%emt 0:01:30]} (29... Ng5 {with more complications.} 30. Nd6 Re7 31. Bb3 Ne6) 30. h4 {[%emt 0:02:12]} Rad8 {[%emt 0:03:59]} 31. Rxd8 {[%emt 0:00:30]} Rxd8 {[%emt 0:00:40]} 32. Ne7 {[%emt 0:02:32]} Be8 {[%emt 0:00:08] Prevents Ng6+.} 33. Bb3 {[%emt 0:02:12]} Nf8 {[%emt 0:01:18]} 34. Nd5 {[%emt 0:03:35]} Bb8 {[%emt 0:02:28]} 35. g5 {[%emt 0:00:32]} fxg5 {[%emt 0:01:11]} 36. hxg5 {[%emt 0:00:10]} h5 {[%emt 0:01:42]} 37. Rh1 {[%emt 0:03:47]} (37. b5 $5) 37... Ne6 {[%emt 0:00:44]} 38. Bd1 {[%emt 0:01:12]} Kh7 {[%emt 0:05:54]} 39. g6+ {[%emt 0:01:42]} Bxg6 {[%emt 0:00:34]} 40. Bxh5 {[%emt 0:00:12]} Nf4+ {[%emt 0:03:07]} (40... Bxh5 $11 41. Rxh5+ Kg6) 41. Nxf4 $16 {[%emt 0:30:31]} exf4 {[%emt 0:30:06]} 42. Bd1+ {[%emt 0:00:00]} Kg8 {[%emt 0:00:00]} 43. Bb3+ {[%emt 0:00:00]} Bf7 {[%emt 0:00:00]} 44. Bxf7+ {[%emt 0:00:00]} Kxf7 {[%emt 0:00:00][%mdl 4096] Endgame [#] KRB-KRB} 45. Rh7 $1 {[%emt 0:00:00]} Rg8 {[%emt 0:00:00]} 46. Kf3 {[%emt 0:00:00]} Kg6 {[%emt 0:00:00]} 47. Rh1 {[%emt 0:00:00] aiming for Rd1.} Kf7 {[%emt 0:00:00]} 48. Rh7 {[%emt 0:00:00]} (48. Rh5 $16) 48... Kg6 $1 $14 {[%emt 0:00:00]} 49. Rh1 {[%emt 0:00:00]} ({White should try} 49. Rh3 $14) 49... Kf7 $1 $16 {[%emt 0:00:00]} 50. Rh5 {[%emt 0:00:00]} Ke6 {[%emt 0:00:00]} (50... Ba7 $16) 51. b5 $18 {[%emt 0:00:00]} g6 {[%emt 0:00:00] [#]} 52. Rh7 {[%emt 0:00:00]} (52. Rg5 $1 $18) 52... Rc8 $16 {[%emt 0:00:00]} 53. Ba5 {[%emt 0:00:00] White is more active.} Rc4 $2 {[%emt 0:00:00][%mdl 8192] This move loses the game for Black.} (53... b6 $16 {is more resistant.}) 54. Rxb7 $18 {[%emt 0:00:00]} Rxa4 {[%emt 0:00:00]} 55. Rb6+ {[%emt 0:00:00]} ({Not} 55. Rxb8 Rxa5 56. b6 (56. Kxf4 Rxb5 57. Rd8 g5+ 58. Kg4 a5 $11) 56... Rb5 $16) 55... Kf7 $2 {[%emt 0:00:00]} (55... Bd6) 56. Rxb8 {[%emt 0:03:43][%cal Ob5b6] And now b6! would win.} Rxa5 {[%emt 0:00:00]} 57. b6 {[%emt 0:00:08]} Rb5 {[%emt 0:00:00]} 58. b7 {[%emt 0:00:09] Threatening mate with Rh8.} Kg7 {[%emt 0:00:00] Prevents Rh8.} 59. e5 {[%emt 0:00:09] Weighted Error Value: White=0.09 (flawless) /Black=0.38} 1-0